Workbook

Sheet viermal-so-viel-doppelt-genau
B2: 0.5 | C2: 0.5 | D2: 0.5 | E2: 0.5
B3: 25 | C3: 100 | D3: 400 | E3: 1600 | F3: 25→100 | G3: 100→400 | H3: 400→1600
A4: 1 | B4: =[0]!Kopfzahl.Kopfzahl(25,B$2)/25 -> 0.32 | C4: =[0]!Kopfzahl.Kopfzahl(75,C$2)/75*(3/4)+B4/4 -> 0.42 | D4: =[0]!Kopfzahl.Kopfzahl(300,D$2)/300*(3/4)+C4/4 -> 0.4525 | E4: =[0]!Kopfzahl.Kopfzahl(1200,E$2)/1200*(3/4)+D4/4 -> 0.48125 | F4: =IF(ABS(C4-0.5)<ABS(B4-0.5),1,"") -> 1 | G4: =IF(ABS(D4-0.5)<ABS(C4-0.5),1,"") -> 1 | H4: =IF(ABS(E4-0.5)<ABS(D4-0.5),1,"") -> 1
A5: 2 | B5: =[0]!Kopfzahl.Kopfzahl(25,B$2)/25 -> 0.44 | C5: =[0]!Kopfzahl.Kopfzahl(75,C$2)/75*(3/4)+B5/4 -> 0.41 | D5: =[0]!Kopfzahl.Kopfzahl(300,D$2)/300*(3/4)+C5/4 -> 0.4975 | E5: =[0]!Kopfzahl.Kopfzahl(1200,E$2)/1200*(3/4)+D5/4 -> 0.491875 | G5: =IF(ABS(D5-0.5)<ABS(C5-0.5),1,"") -> 1 | H5: =IF(ABS(E5-0.5)<ABS(D5-0.5),1,"") -> 
A6: 3 | B6: =[0]!Kopfzahl.Kopfzahl(25,B$2)/25 -> 0.52 | C6: =[0]!Kopfzahl.Kopfzahl(75,C$2)/75*(3/4)+B6/4 -> 0.45 | D6: =[0]!Kopfzahl.Kopfzahl(300,D$2)/300*(3/4)+C6/4 -> 0.5 | E6: =[0]!Kopfzahl.Kopfzahl(1200,E$2)/1200*(3/4)+D6/4 -> 0.5025 | G6: 1
A7: 4 | B7: =[0]!Kopfzahl.Kopfzahl(25,B$2)/25 -> 0.4 | C7: =[0]!Kopfzahl.Kopfzahl(75,C$2)/75*(3/4)+B7/4 -> 0.48 | D7: =[0]!Kopfzahl.Kopfzahl(300,D$2)/300*(3/4)+C7/4 -> 0.485 | E7: =[0]!Kopfzahl.Kopfzahl(1200,E$2)/1200*(3/4)+D7/4 -> 0.4925 | F7: 1 | G7: 1 | H7: 1 | N7: =[0]!Kopfzahl.Kopfzahl(20,0.5) -> 8
A8: 5 | B8: =[0]!Kopfzahl.Kopfzahl(25,B$2)/25 -> 0.52 | C8: =[0]!Kopfzahl.Kopfzahl(75,C$2)/75*(3/4)+B8/4 -> 0.53 | D8: =[0]!Kopfzahl.Kopfzahl(300,D$2)/300*(3/4)+C8/4 -> 0.5175 | E8: =[0]!Kopfzahl.Kopfzahl(1200,E$2)/1200*(3/4)+D8/4 -> 0.510625 | G8: 1 | H8: 1
A9: 6 | B9: =[0]!Kopfzahl.Kopfzahl(25,B$2)/25 -> 0.44 | C9: =[0]!Kopfzahl.Kopfzahl(75,C$2)/75*(3/4)+B9/4 -> 0.48 | D9: =[0]!Kopfzahl.Kopfzahl(300,D$2)/300*(3/4)+C9/4 -> 0.495 | E9: =[0]!Kopfzahl.Kopfzahl(1200,E$2)/1200*(3/4)+D9/4 -> 0.510625 | F9: 1 | G9: 1
A10: 7 | B10: =[0]!Kopfzahl.Kopfzahl(25,B$2)/25 -> 0.52 | C10: =[0]!Kopfzahl.Kopfzahl(75,C$2)/75*(3/4)+B10/4 -> 0.48 | D10: =[0]!Kopfzahl.Kopfzahl(300,D$2)/300*(3/4)+C10/4 -> 0.4825 | E10: =[0]!Kopfzahl.Kopfzahl(1200,E$2)/1200*(3/4)+D10/4 -> 0.51375 | G10: 1 | H10: 1
A11: 8 | B11: =[0]!Kopfzahl.Kopfzahl(25,B$2)/25 -> 0.4 | C11: =[0]!Kopfzahl.Kopfzahl(75,C$2)/75*(3/4)+B11/4 -> 0.49 | D11: =[0]!Kopfzahl.Kopfzahl(300,D$2)/300*(3/4)+C11/4 -> 0.475 | E11: =[0]!Kopfzahl.Kopfzahl(1200,E$2)/1200*(3/4)+D11/4 -> 0.498125 | F11: 1 | H11: 1
A12: 9 | B12: =[0]!Kopfzahl.Kopfzahl(25,B$2)/25 -> 0.44 | C12: =[0]!Kopfzahl.Kopfzahl(75,C$2)/75*(3/4)+B12/4 -> 0.54 | D12: =[0]!Kopfzahl.Kopfzahl(300,D$2)/300*(3/4)+C12/4 -> 0.5175 | E12: =[0]!Kopfzahl.Kopfzahl(1200,E$2)/1200*(3/4)+D12/4 -> 0.5 | F12: 1 | G12: 1 | H12: 1
A13: 10 | B13: =[0]!Kopfzahl.Kopfzahl(25,B$2)/25 -> 0.52 | C13: =[0]!Kopfzahl.Kopfzahl(75,C$2)/75*(3/4)+B13/4 -> 0.52 | D13: =[0]!Kopfzahl.Kopfzahl(300,D$2)/300*(3/4)+C13/4 -> 0.5 | E13: =[0]!Kopfzahl.Kopfzahl(1200,E$2)/1200*(3/4)+D13/4 -> 0.514375 | G13: 1
A14: 11 | B14: =[0]!Kopfzahl.Kopfzahl(25,B$2)/25 -> 0.68 | C14: =[0]!Kopfzahl.Kopfzahl(75,C$2)/75*(3/4)+B14/4 -> 0.51 | D14: =[0]!Kopfzahl.Kopfzahl(300,D$2)/300*(3/4)+C14/4 -> 0.4925 | E14: =[0]!Kopfzahl.Kopfzahl(1200,E$2)/1200*(3/4)+D14/4 -> 0.49125 | F14: 1 | G14: 1
A15: 12 | B15: =[0]!Kopfzahl.Kopfzahl(25,B$2)/25 -> 0.64 | C15: =[0]!Kopfzahl.Kopfzahl(75,C$2)/75*(3/4)+B15/4 -> 0.58 | D15: =[0]!Kopfzahl.Kopfzahl(300,D$2)/300*(3/4)+C15/4 -> 0.5725 | E15: =[0]!Kopfzahl.Kopfzahl(1200,E$2)/1200*(3/4)+D15/4 -> 0.499375 | F15: 1 | G15: 1 | H15: 1
A16: 13 | B16: =[0]!Kopfzahl.Kopfzahl(25,B$2)/25 -> 0.56 | C16: =[0]!Kopfzahl.Kopfzahl(75,C$2)/75*(3/4)+B16/4 -> 0.55 | D16: =[0]!Kopfzahl.Kopfzahl(300,D$2)/300*(3/4)+C16/4 -> 0.5 | E16: =[0]!Kopfzahl.Kopfzahl(1200,E$2)/1200*(3/4)+D16/4 -> 0.499375 | F16: 1 | G16: 1
A17: 14 | B17: =[0]!Kopfzahl.Kopfzahl(25,B$2)/25 -> 0.48 | C17: =[0]!Kopfzahl.Kopfzahl(75,C$2)/75*(3/4)+B17/4 -> 0.43 | D17: =[0]!Kopfzahl.Kopfzahl(300,D$2)/300*(3/4)+C17/4 -> 0.4475 | E17: =[0]!Kopfzahl.Kopfzahl(1200,E$2)/1200*(3/4)+D17/4 -> 0.4625 | G17: 1 | H17: 1
A18: 15 | B18: =[0]!Kopfzahl.Kopfzahl(25,B$2)/25 -> 0.4 | C18: =[0]!Kopfzahl.Kopfzahl(75,C$2)/75*(3/4)+B18/4 -> 0.4 | D18: =[0]!Kopfzahl.Kopfzahl(300,D$2)/300*(3/4)+C18/4 -> 0.4925 | E18: =[0]!Kopfzahl.Kopfzahl(1200,E$2)/1200*(3/4)+D18/4 -> 0.4775 | G18: 1 | I18: Quartilabstand | J18: =B111-B106 -> 0.12 | K18: =C111-C106 -> 0.05 | L18: =D111-D106 -> 0.03 | M18: =E111-E106 -> 0.0165625
A19: 16 | B19: =[0]!Kopfzahl.Kopfzahl(25,B$2)/25 -> 0.52 | C19: =[0]!Kopfzahl.Kopfzahl(75,C$2)/75*(3/4)+B19/4 -> 0.49 | D19: =[0]!Kopfzahl.Kopfzahl(300,D$2)/300*(3/4)+C19/4 -> 0.5 | E19: =[0]!Kopfzahl.Kopfzahl(1200,E$2)/1200*(3/4)+D19/4 -> 0.5075 | F19: 1 | G19: 1 | I19: Verkleinerungsfaktor | K19: =K18/J18 -> 0.4166666667 | L19: =L18/K18 -> 0.6 | M19: =M18/L18 -> 0.5520833333
A20: 17 | B20: =[0]!Kopfzahl.Kopfzahl(25,B$2)/25 -> 0.44 | C20: =[0]!Kopfzahl.Kopfzahl(75,C$2)/75*(3/4)+B20/4 -> 0.48 | D20: =[0]!Kopfzahl.Kopfzahl(300,D$2)/300*(3/4)+C20/4 -> 0.485 | E20: =[0]!Kopfzahl.Kopfzahl(1200,E$2)/1200*(3/4)+D20/4 -> 0.51375 | F20: 1 | G20: 1 | H20: 1
A21: 18 | B21: =[0]!Kopfzahl.Kopfzahl(25,B$2)/25 -> 0.6 | C21: =[0]!Kopfzahl.Kopfzahl(75,C$2)/75*(3/4)+B21/4 -> 0.56 | D21: =[0]!Kopfzahl.Kopfzahl(300,D$2)/300*(3/4)+C21/4 -> 0.5125 | E21: =[0]!Kopfzahl.Kopfzahl(1200,E$2)/1200*(3/4)+D21/4 -> 0.498125 | F21: 1 | G21: 1 | H21: 1
A22: 19 | B22: =[0]!Kopfzahl.Kopfzahl(25,B$2)/25 -> 0.44 | C22: =[0]!Kopfzahl.Kopfzahl(75,C$2)/75*(3/4)+B22/4 -> 0.48 | D22: =[0]!Kopfzahl.Kopfzahl(300,D$2)/300*(3/4)+C22/4 -> 0.51 | E22: =[0]!Kopfzahl.Kopfzahl(1200,E$2)/1200*(3/4)+D22/4 -> 0.49875 | F22: 1 | G22: 1 | H22: 1
A23: 20 | B23: =[0]!Kopfzahl.Kopfzahl(25,B$2)/25 -> 0.6 | C23: =[0]!Kopfzahl.Kopfzahl(75,C$2)/75*(3/4)+B23/4 -> 0.45 | D23: =[0]!Kopfzahl.Kopfzahl(300,D$2)/300*(3/4)+C23/4 -> 0.505 | E23: =[0]!Kopfzahl.Kopfzahl(1200,E$2)/1200*(3/4)+D23/4 -> 0.50125 | F23: 1 | G23: 1 | H23: 1
A24: 21 | B24: =[0]!Kopfzahl.Kopfzahl(25,B$2)/25 -> 0.52 | C24: =[0]!Kopfzahl.Kopfzahl(75,C$2)/75*(3/4)+B24/4 -> 0.49 | D24: =[0]!Kopfzahl.Kopfzahl(300,D$2)/300*(3/4)+C24/4 -> 0.5 | E24: =[0]!Kopfzahl.Kopfzahl(1200,E$2)/1200*(3/4)+D24/4 -> 0.485 | F24: 1 | G24: 1
A25: 22 | B25: =[0]!Kopfzahl.Kopfzahl(25,B$2)/25 -> 0.52 | C25: =[0]!Kopfzahl.Kopfzahl(75,C$2)/75*(3/4)+B25/4 -> 0.55 | D25: =[0]!Kopfzahl.Kopfzahl(300,D$2)/300*(3/4)+C25/4 -> 0.5125 | E25: =[0]!Kopfzahl.Kopfzahl(1200,E$2)/1200*(3/4)+D25/4 -> 0.51625 | G25: 1
A26: 23 | B26: =[0]!Kopfzahl.Kopfzahl(25,B$2)/25 -> 0.56 | C26: =[0]!Kopfzahl.Kopfzahl(75,C$2)/75*(3/4)+B26/4 -> 0.54 | D26: =[0]!Kopfzahl.Kopfzahl(300,D$2)/300*(3/4)+C26/4 -> 0.4825 | E26: =[0]!Kopfzahl.Kopfzahl(1200,E$2)/1200*(3/4)+D26/4 -> 0.50875 | F26: 1 | G26: 1 | H26: 1
A27: 24 | B27: =[0]!Kopfzahl.Kopfzahl(25,B$2)/25 -> 0.6 | C27: =[0]!Kopfzahl.Kopfzahl(75,C$2)/75*(3/4)+B27/4 -> 0.51 | D27: =[0]!Kopfzahl.Kopfzahl(300,D$2)/300*(3/4)+C27/4 -> 0.4825 | E27: =[0]!Kopfzahl.Kopfzahl(1200,E$2)/1200*(3/4)+D27/4 -> 0.50625 | F27: 1 | H27: 1
A28: 25 | B28: =[0]!Kopfzahl.Kopfzahl(25,B$2)/25 -> 0.6 | C28: =[0]!Kopfzahl.Kopfzahl(75,C$2)/75*(3/4)+B28/4 -> 0.55 | D28: =[0]!Kopfzahl.Kopfzahl(300,D$2)/300*(3/4)+C28/4 -> 0.5025 | E28: =[0]!Kopfzahl.Kopfzahl(1200,E$2)/1200*(3/4)+D28/4 -> 0.493125 | F28: 1 | G28: 1
A29: 26 | B29: =[0]!Kopfzahl.Kopfzahl(25,B$2)/25 -> 0.48 | C29: =[0]!Kopfzahl.Kopfzahl(75,C$2)/75*(3/4)+B29/4 -> 0.48 | D29: =[0]!Kopfzahl.Kopfzahl(300,D$2)/300*(3/4)+C29/4 -> 0.5175 | E29: =[0]!Kopfzahl.Kopfzahl(1200,E$2)/1200*(3/4)+D29/4 -> 0.5125 | G29: 1 | H29: 1
A30: 27 | B30: =[0]!Kopfzahl.Kopfzahl(25,B$2)/25 -> 0.56 | C30: =[0]!Kopfzahl.Kopfzahl(75,C$2)/75*(3/4)+B30/4 -> 0.5 | D30: =[0]!Kopfzahl.Kopfzahl(300,D$2)/300*(3/4)+C30/4 -> 0.4875 | E30: =[0]!Kopfzahl.Kopfzahl(1200,E$2)/1200*(3/4)+D30/4 -> 0.489375 | F30: 1 | H30: 1
A31: 28 | B31: =[0]!Kopfzahl.Kopfzahl(25,B$2)/25 -> 0.56 | C31: =[0]!Kopfzahl.Kopfzahl(75,C$2)/75*(3/4)+B31/4 -> 0.51 | D31: =[0]!Kopfzahl.Kopfzahl(300,D$2)/300*(3/4)+C31/4 -> 0.515 | E31: =[0]!Kopfzahl.Kopfzahl(1200,E$2)/1200*(3/4)+D31/4 -> 0.506875 | F31: 1 | H31: 1
A32: 29 | B32: =[0]!Kopfzahl.Kopfzahl(25,B$2)/25 -> 0.52 | C32: =[0]!Kopfzahl.Kopfzahl(75,C$2)/75*(3/4)+B32/4 -> 0.51 | D32: =[0]!Kopfzahl.Kopfzahl(300,D$2)/300*(3/4)+C32/4 -> 0.5175 | E32: =[0]!Kopfzahl.Kopfzahl(1200,E$2)/1200*(3/4)+D32/4 -> 0.505625 | F32: 1 | H32: 1
A33: 30 | B33: =[0]!Kopfzahl.Kopfzahl(25,B$2)/25 -> 0.4 | C33: =[0]!Kopfzahl.Kopfzahl(75,C$2)/75*(3/4)+B33/4 -> 0.49 | D33: =[0]!Kopfzahl.Kopfzahl(300,D$2)/300*(3/4)+C33/4 -> 0.485 | E33: =[0]!Kopfzahl.Kopfzahl(1200,E$2)/1200*(3/4)+D33/4 -> 0.4825 | F33: 1
A34: 31 | B34: =[0]!Kopfzahl.Kopfzahl(25,B$2)/25 -> 0.48 | C34: =[0]!Kopfzahl.Kopfzahl(75,C$2)/75*(3/4)+B34/4 -> 0.59 | D34: =[0]!Kopfzahl.Kopfzahl(300,D$2)/300*(3/4)+C34/4 -> 0.5175 | E34: =[0]!Kopfzahl.Kopfzahl(1200,E$2)/1200*(3/4)+D34/4 -> 0.500625 | G34: 1 | H34: 1
A35: 32 | B35: =[0]!Kopfzahl.Kopfzahl(25,B$2)/25 -> 0.44 | C35: =[0]!Kopfzahl.Kopfzahl(75,C$2)/75*(3/4)+B35/4 -> 0.53 | D35: =[0]!Kopfzahl.Kopfzahl(300,D$2)/300*(3/4)+C35/4 -> 0.5225 | E35: =[0]!Kopfzahl.Kopfzahl(1200,E$2)/1200*(3/4)+D35/4 -> 0.51125 | F35: 1 | G35: 1 | H35: 1
A36: 33 | B36: =[0]!Kopfzahl.Kopfzahl(25,B$2)/25 -> 0.64 | C36: =[0]!Kopfzahl.Kopfzahl(75,C$2)/75*(3/4)+B36/4 -> 0.49 | D36: =[0]!Kopfzahl.Kopfzahl(300,D$2)/300*(3/4)+C36/4 -> 0.51 | E36: =[0]!Kopfzahl.Kopfzahl(1200,E$2)/1200*(3/4)+D36/4 -> 0.500625 | F36: 1 | H36: 1
A37: 34 | B37: =[0]!Kopfzahl.Kopfzahl(25,B$2)/25 -> 0.6 | C37: =[0]!Kopfzahl.Kopfzahl(75,C$2)/75*(3/4)+B37/4 -> 0.52 | D37: =[0]!Kopfzahl.Kopfzahl(300,D$2)/300*(3/4)+C37/4 -> 0.4925 | E37: =[0]!Kopfzahl.Kopfzahl(1200,E$2)/1200*(3/4)+D37/4 -> 0.509375 | F37: 1 | G37: 1
A38: 35 | B38: =[0]!Kopfzahl.Kopfzahl(25,B$2)/25 -> 0.52 | C38: =[0]!Kopfzahl.Kopfzahl(75,C$2)/75*(3/4)+B38/4 -> 0.5 | D38: =[0]!Kopfzahl.Kopfzahl(300,D$2)/300*(3/4)+C38/4 -> 0.5075 | E38: =[0]!Kopfzahl.Kopfzahl(1200,E$2)/1200*(3/4)+D38/4 -> 0.5025 | F38: 1 | H38: 1
A39: 36 | B39: =[0]!Kopfzahl.Kopfzahl(25,B$2)/25 -> 0.48 | C39: =[0]!Kopfzahl.Kopfzahl(75,C$2)/75*(3/4)+B39/4 -> 0.51 | D39: =[0]!Kopfzahl.Kopfzahl(300,D$2)/300*(3/4)+C39/4 -> 0.48 | E39: =[0]!Kopfzahl.Kopfzahl(1200,E$2)/1200*(3/4)+D39/4 -> 0.501875 | F39: 1 | H39: 1
A40: 37 | B40: =[0]!Kopfzahl.Kopfzahl(25,B$2)/25 -> 0.6 | C40: =[0]!Kopfzahl.Kopfzahl(75,C$2)/75*(3/4)+B40/4 -> 0.52 | D40: =[0]!Kopfzahl.Kopfzahl(300,D$2)/300*(3/4)+C40/4 -> 0.5475 | E40: =[0]!Kopfzahl.Kopfzahl(1200,E$2)/1200*(3/4)+D40/4 -> 0.509375 | F40: 1 | H40: 1
A41: 38 | B41: =[0]!Kopfzahl.Kopfzahl(25,B$2)/25 -> 0.44 | C41: =[0]!Kopfzahl.Kopfzahl(75,C$2)/75*(3/4)+B41/4 -> 0.48 | D41: =[0]!Kopfzahl.Kopfzahl(300,D$2)/300*(3/4)+C41/4 -> 0.515 | E41: =[0]!Kopfzahl.Kopfzahl(1200,E$2)/1200*(3/4)+D41/4 -> 0.523125 | F41: 1 | G41: 1
A42: 39 | B42: =[0]!Kopfzahl.Kopfzahl(25,B$2)/25 -> 0.72 | C42: =[0]!Kopfzahl.Kopfzahl(75,C$2)/75*(3/4)+B42/4 -> 0.65 | D42: =[0]!Kopfzahl.Kopfzahl(300,D$2)/300*(3/4)+C42/4 -> 0.4925 | E42: =[0]!Kopfzahl.Kopfzahl(1200,E$2)/1200*(3/4)+D42/4 -> 0.489375 | F42: 1 | G42: 1
A43: 40 | B43: =[0]!Kopfzahl.Kopfzahl(25,B$2)/25 -> 0.44 | C43: =[0]!Kopfzahl.Kopfzahl(75,C$2)/75*(3/4)+B43/4 -> 0.43 | D43: =[0]!Kopfzahl.Kopfzahl(300,D$2)/300*(3/4)+C43/4 -> 0.47 | E43: =[0]!Kopfzahl.Kopfzahl(1200,E$2)/1200*(3/4)+D43/4 -> 0.4975 | G43: 1 | H43: 1
A44: 41 | B44: =[0]!Kopfzahl.Kopfzahl(25,B$2)/25 -> 0.48 | C44: =[0]!Kopfzahl.Kopfzahl(75,C$2)/75*(3/4)+B44/4 -> 0.49 | D44: =[0]!Kopfzahl.Kopfzahl(300,D$2)/300*(3/4)+C44/4 -> 0.475 | E44: =[0]!Kopfzahl.Kopfzahl(1200,E$2)/1200*(3/4)+D44/4 -> 0.513125 | F44: 1 | H44: 1
A45: 42 | B45: =[0]!Kopfzahl.Kopfzahl(25,B$2)/25 -> 0.52 | C45: =[0]!Kopfzahl.Kopfzahl(75,C$2)/75*(3/4)+B45/4 -> 0.54 | D45: =[0]!Kopfzahl.Kopfzahl(300,D$2)/300*(3/4)+C45/4 -> 0.51 | E45: =[0]!Kopfzahl.Kopfzahl(1200,E$2)/1200*(3/4)+D45/4 -> 0.491875 | G45: 1 | H45: 1
A46: 43 | B46: =[0]!Kopfzahl.Kopfzahl(25,B$2)/25 -> 0.36 | C46: =[0]!Kopfzahl.Kopfzahl(75,C$2)/75*(3/4)+B46/4 -> 0.49 | D46: =[0]!Kopfzahl.Kopfzahl(300,D$2)/300*(3/4)+C46/4 -> 0.5125 | E46: =[0]!Kopfzahl.Kopfzahl(1200,E$2)/1200*(3/4)+D46/4 -> 0.50375 | F46: 1 | H46: 1
A47: 44 | B47: =[0]!Kopfzahl.Kopfzahl(25,B$2)/25 -> 0.6 | C47: =[0]!Kopfzahl.Kopfzahl(75,C$2)/75*(3/4)+B47/4 -> 0.55 | D47: =[0]!Kopfzahl.Kopfzahl(300,D$2)/300*(3/4)+C47/4 -> 0.46 | E47: =[0]!Kopfzahl.Kopfzahl(1200,E$2)/1200*(3/4)+D47/4 -> 0.489375 | F47: 1 | G47: 1 | H47: 1
A48: 45 | B48: =[0]!Kopfzahl.Kopfzahl(25,B$2)/25 -> 0.4 | C48: =[0]!Kopfzahl.Kopfzahl(75,C$2)/75*(3/4)+B48/4 -> 0.49 | D48: =[0]!Kopfzahl.Kopfzahl(300,D$2)/300*(3/4)+C48/4 -> 0.48 | E48: =[0]!Kopfzahl.Kopfzahl(1200,E$2)/1200*(3/4)+D48/4 -> 0.48625 | F48: 1 | H48: 1
A49: 46 | B49: =[0]!Kopfzahl.Kopfzahl(25,B$2)/25 -> 0.44 | C49: =[0]!Kopfzahl.Kopfzahl(75,C$2)/75*(3/4)+B49/4 -> 0.51 | D49: =[0]!Kopfzahl.Kopfzahl(300,D$2)/300*(3/4)+C49/4 -> 0.4725 | E49: =[0]!Kopfzahl.Kopfzahl(1200,E$2)/1200*(3/4)+D49/4 -> 0.484375 | F49: 1 | H49: 1
A50: 47 | B50: =[0]!Kopfzahl.Kopfzahl(25,B$2)/25 -> 0.44 | C50: =[0]!Kopfzahl.Kopfzahl(75,C$2)/75*(3/4)+B50/4 -> 0.41 | D50: =[0]!Kopfzahl.Kopfzahl(300,D$2)/300*(3/4)+C50/4 -> 0.5125 | E50: =[0]!Kopfzahl.Kopfzahl(1200,E$2)/1200*(3/4)+D50/4 -> 0.493125 | G50: 1 | H50: 1
A51: 48 | B51: =[0]!Kopfzahl.Kopfzahl(25,B$2)/25 -> 0.52 | C51: =[0]!Kopfzahl.Kopfzahl(75,C$2)/75*(3/4)+B51/4 -> 0.54 | D51: =[0]!Kopfzahl.Kopfzahl(300,D$2)/300*(3/4)+C51/4 -> 0.485 | E51: =[0]!Kopfzahl.Kopfzahl(1200,E$2)/1200*(3/4)+D51/4 -> 0.490625 | G51: 1 | H51: 1
A52: 49 | B52: =[0]!Kopfzahl.Kopfzahl(25,B$2)/25 -> 0.48 | C52: =[0]!Kopfzahl.Kopfzahl(75,C$2)/75*(3/4)+B52/4 -> 0.5 | D52: =[0]!Kopfzahl.Kopfzahl(300,D$2)/300*(3/4)+C52/4 -> 0.49 | E52: =[0]!Kopfzahl.Kopfzahl(1200,E$2)/1200*(3/4)+D52/4 -> 0.485 | F52: 1
A53: 50 | B53: =[0]!Kopfzahl.Kopfzahl(25,B$2)/25 -> 0.48 | C53: =[0]!Kopfzahl.Kopfzahl(75,C$2)/75*(3/4)+B53/4 -> 0.5 | D53: =[0]!Kopfzahl.Kopfzahl(300,D$2)/300*(3/4)+C53/4 -> 0.5075 | E53: =[0]!Kopfzahl.Kopfzahl(1200,E$2)/1200*(3/4)+D53/4 -> 0.496875 | F53: 1 | H53: 1
A54: 51 | B54: =[0]!Kopfzahl.Kopfzahl(25,B$2)/25 -> 0.32 | C54: =[0]!Kopfzahl.Kopfzahl(75,C$2)/75*(3/4)+B54/4 -> 0.43 | D54: =[0]!Kopfzahl.Kopfzahl(300,D$2)/300*(3/4)+C54/4 -> 0.4975 | E54: =[0]!Kopfzahl.Kopfzahl(1200,E$2)/1200*(3/4)+D54/4 -> 0.505625 | F54: 1 | G54: 1
A55: 52 | B55: =[0]!Kopfzahl.Kopfzahl(25,B$2)/25 -> 0.56 | C55: =[0]!Kopfzahl.Kopfzahl(75,C$2)/75*(3/4)+B55/4 -> 0.6 | D55: =[0]!Kopfzahl.Kopfzahl(300,D$2)/300*(3/4)+C55/4 -> 0.525 | E55: =[0]!Kopfzahl.Kopfzahl(1200,E$2)/1200*(3/4)+D55/4 -> 0.50375 | G55: 1 | H55: 1
A56: 53 | B56: =[0]!Kopfzahl.Kopfzahl(25,B$2)/25 -> 0.6 | C56: =[0]!Kopfzahl.Kopfzahl(75,C$2)/75*(3/4)+B56/4 -> 0.53 | D56: =[0]!Kopfzahl.Kopfzahl(300,D$2)/300*(3/4)+C56/4 -> 0.475 | E56: =[0]!Kopfzahl.Kopfzahl(1200,E$2)/1200*(3/4)+D56/4 -> 0.49625 | F56: 1 | G56: 1 | H56: 1
A57: 54 | B57: =[0]!Kopfzahl.Kopfzahl(25,B$2)/25 -> 0.4 | C57: =[0]!Kopfzahl.Kopfzahl(75,C$2)/75*(3/4)+B57/4 -> 0.51 | D57: =[0]!Kopfzahl.Kopfzahl(300,D$2)/300*(3/4)+C57/4 -> 0.51 | E57: =[0]!Kopfzahl.Kopfzahl(1200,E$2)/1200*(3/4)+D57/4 -> 0.491875 | F57: 1 | H57: 1
A58: 55 | B58: =[0]!Kopfzahl.Kopfzahl(25,B$2)/25 -> 0.48 | C58: =[0]!Kopfzahl.Kopfzahl(75,C$2)/75*(3/4)+B58/4 -> 0.52 | D58: =[0]!Kopfzahl.Kopfzahl(300,D$2)/300*(3/4)+C58/4 -> 0.53 | E58: =[0]!Kopfzahl.Kopfzahl(1200,E$2)/1200*(3/4)+D58/4 -> 0.505 | H58: 1
A59: 56 | B59: =[0]!Kopfzahl.Kopfzahl(25,B$2)/25 -> 0.4 | C59: =[0]!Kopfzahl.Kopfzahl(75,C$2)/75*(3/4)+B59/4 -> 0.51 | D59: =[0]!Kopfzahl.Kopfzahl(300,D$2)/300*(3/4)+C59/4 -> 0.53 | E59: =[0]!Kopfzahl.Kopfzahl(1200,E$2)/1200*(3/4)+D59/4 -> 0.511875 | F59: 1 | H59: 1
A60: 57 | B60: =[0]!Kopfzahl.Kopfzahl(25,B$2)/25 -> 0.36 | C60: =[0]!Kopfzahl.Kopfzahl(75,C$2)/75*(3/4)+B60/4 -> 0.44 | D60: =[0]!Kopfzahl.Kopfzahl(300,D$2)/300*(3/4)+C60/4 -> 0.4925 | E60: =[0]!Kopfzahl.Kopfzahl(1200,E$2)/1200*(3/4)+D60/4 -> 0.515 | F60: 1 | G60: 1
A61: 58 | B61: =[0]!Kopfzahl.Kopfzahl(25,B$2)/25 -> 0.64 | C61: =[0]!Kopfzahl.Kopfzahl(75,C$2)/75*(3/4)+B61/4 -> 0.44 | D61: =[0]!Kopfzahl.Kopfzahl(300,D$2)/300*(3/4)+C61/4 -> 0.5 | E61: =[0]!Kopfzahl.Kopfzahl(1200,E$2)/1200*(3/4)+D61/4 -> 0.503125 | F61: 1 | G61: 1
A62: 59 | B62: =[0]!Kopfzahl.Kopfzahl(25,B$2)/25 -> 0.52 | C62: =[0]!Kopfzahl.Kopfzahl(75,C$2)/75*(3/4)+B62/4 -> 0.61 | D62: =[0]!Kopfzahl.Kopfzahl(300,D$2)/300*(3/4)+C62/4 -> 0.54 | E62: =[0]!Kopfzahl.Kopfzahl(1200,E$2)/1200*(3/4)+D62/4 -> 0.51375 | G62: 1 | H62: 1
A63: 60 | B63: =[0]!Kopfzahl.Kopfzahl(25,B$2)/25 -> 0.44 | C63: =[0]!Kopfzahl.Kopfzahl(75,C$2)/75*(3/4)+B63/4 -> 0.5 | D63: =[0]!Kopfzahl.Kopfzahl(300,D$2)/300*(3/4)+C63/4 -> 0.4925 | E63: =[0]!Kopfzahl.Kopfzahl(1200,E$2)/1200*(3/4)+D63/4 -> 0.495625 | F63: 1 | H63: 1
A64: 61 | B64: =[0]!Kopfzahl.Kopfzahl(25,B$2)/25 -> 0.4 | C64: =[0]!Kopfzahl.Kopfzahl(75,C$2)/75*(3/4)+B64/4 -> 0.5 | D64: =[0]!Kopfzahl.Kopfzahl(300,D$2)/300*(3/4)+C64/4 -> 0.5225 | E64: =[0]!Kopfzahl.Kopfzahl(1200,E$2)/1200*(3/4)+D64/4 -> 0.5075 | F64: 1 | H64: 1
A65: 62 | B65: =[0]!Kopfzahl.Kopfzahl(25,B$2)/25 -> 0.56 | C65: =[0]!Kopfzahl.Kopfzahl(75,C$2)/75*(3/4)+B65/4 -> 0.42 | D65: =[0]!Kopfzahl.Kopfzahl(300,D$2)/300*(3/4)+C65/4 -> 0.4675 | E65: =[0]!Kopfzahl.Kopfzahl(1200,E$2)/1200*(3/4)+D65/4 -> 0.480625 | G65: 1 | H65: 1
A66: 63 | B66: =[0]!Kopfzahl.Kopfzahl(25,B$2)/25 -> 0.4 | C66: =[0]!Kopfzahl.Kopfzahl(75,C$2)/75*(3/4)+B66/4 -> 0.46 | D66: =[0]!Kopfzahl.Kopfzahl(300,D$2)/300*(3/4)+C66/4 -> 0.4725 | E66: =[0]!Kopfzahl.Kopfzahl(1200,E$2)/1200*(3/4)+D66/4 -> 0.49125 | F66: 1 | G66: 1 | H66: 1
A67: 64 | B67: =[0]!Kopfzahl.Kopfzahl(25,B$2)/25 -> 0.48 | C67: =[0]!Kopfzahl.Kopfzahl(75,C$2)/75*(3/4)+B67/4 -> 0.48 | D67: =[0]!Kopfzahl.Kopfzahl(300,D$2)/300*(3/4)+C67/4 -> 0.4575 | E67: =[0]!Kopfzahl.Kopfzahl(1200,E$2)/1200*(3/4)+D67/4 -> 0.5 | H67: 1
A68: 65 | B68: =[0]!Kopfzahl.Kopfzahl(25,B$2)/25 -> 0.52 | C68: =[0]!Kopfzahl.Kopfzahl(75,C$2)/75*(3/4)+B68/4 -> 0.52 | D68: =[0]!Kopfzahl.Kopfzahl(300,D$2)/300*(3/4)+C68/4 -> 0.485 | E68: =[0]!Kopfzahl.Kopfzahl(1200,E$2)/1200*(3/4)+D68/4 -> 0.494375 | G68: 1 | H68: 1
A69: 66 | B69: =[0]!Kopfzahl.Kopfzahl(25,B$2)/25 -> 0.44 | C69: =[0]!Kopfzahl.Kopfzahl(75,C$2)/75*(3/4)+B69/4 -> 0.55 | D69: =[0]!Kopfzahl.Kopfzahl(300,D$2)/300*(3/4)+C69/4 -> 0.54 | E69: =[0]!Kopfzahl.Kopfzahl(1200,E$2)/1200*(3/4)+D69/4 -> 0.515625 | F69: =IF(ABS(C69-0.5)<ABS(B69-0.5),1,"") -> 1 | G69: =IF(ABS(D69-0.5)<ABS(C69-0.5),1,"") -> 1 | H69: =IF(ABS(E69-0.5)<ABS(D69-0.5),1,"") -> 1
A70: 67 | B70: =[0]!Kopfzahl.Kopfzahl(25,B$2)/25 -> 0.56 | C70: =[0]!Kopfzahl.Kopfzahl(75,C$2)/75*(3/4)+B70/4 -> 0.56 | D70: =[0]!Kopfzahl.Kopfzahl(300,D$2)/300*(3/4)+C70/4 -> 0.4975 | E70: =[0]!Kopfzahl.Kopfzahl(1200,E$2)/1200*(3/4)+D70/4 -> 0.503125 | G70: 1
A71: 68 | B71: =[0]!Kopfzahl.Kopfzahl(25,B$2)/25 -> 0.4 | C71: =[0]!Kopfzahl.Kopfzahl(75,C$2)/75*(3/4)+B71/4 -> 0.46 | D71: =[0]!Kopfzahl.Kopfzahl(300,D$2)/300*(3/4)+C71/4 -> 0.49 | E71: =[0]!Kopfzahl.Kopfzahl(1200,E$2)/1200*(3/4)+D71/4 -> 0.504375 | F71: 1 | G71: 1 | H71: 1
A72: 69 | B72: =[0]!Kopfzahl.Kopfzahl(25,B$2)/25 -> 0.6 | C72: =[0]!Kopfzahl.Kopfzahl(75,C$2)/75*(3/4)+B72/4 -> 0.5 | D72: =[0]!Kopfzahl.Kopfzahl(300,D$2)/300*(3/4)+C72/4 -> 0.525 | E72: =[0]!Kopfzahl.Kopfzahl(1200,E$2)/1200*(3/4)+D72/4 -> 0.508125 | F72: 1 | H72: 1
A73: 70 | B73: =[0]!Kopfzahl.Kopfzahl(25,B$2)/25 -> 0.44 | C73: =[0]!Kopfzahl.Kopfzahl(75,C$2)/75*(3/4)+B73/4 -> 0.5 | D73: =[0]!Kopfzahl.Kopfzahl(300,D$2)/300*(3/4)+C73/4 -> 0.475 | E73: =[0]!Kopfzahl.Kopfzahl(1200,E$2)/1200*(3/4)+D73/4 -> 0.505 | F73: 1 | H73: 1
A74: 71 | B74: =[0]!Kopfzahl.Kopfzahl(25,B$2)/25 -> 0.6 | C74: =[0]!Kopfzahl.Kopfzahl(75,C$2)/75*(3/4)+B74/4 -> 0.51 | D74: =[0]!Kopfzahl.Kopfzahl(300,D$2)/300*(3/4)+C74/4 -> 0.4925 | E74: =[0]!Kopfzahl.Kopfzahl(1200,E$2)/1200*(3/4)+D74/4 -> 0.499375 | F74: 1 | G74: 1 | H74: 1
A75: 72 | B75: =[0]!Kopfzahl.Kopfzahl(25,B$2)/25 -> 0.52 | C75: =[0]!Kopfzahl.Kopfzahl(75,C$2)/75*(3/4)+B75/4 -> 0.5 | D75: =[0]!Kopfzahl.Kopfzahl(300,D$2)/300*(3/4)+C75/4 -> 0.4775 | E75: =[0]!Kopfzahl.Kopfzahl(1200,E$2)/1200*(3/4)+D75/4 -> 0.500625 | F75: 1 | H75: 1
A76: 73 | B76: =[0]!Kopfzahl.Kopfzahl(25,B$2)/25 -> 0.44 | C76: =[0]!Kopfzahl.Kopfzahl(75,C$2)/75*(3/4)+B76/4 -> 0.52 | D76: =[0]!Kopfzahl.Kopfzahl(300,D$2)/300*(3/4)+C76/4 -> 0.505 | E76: =[0]!Kopfzahl.Kopfzahl(1200,E$2)/1200*(3/4)+D76/4 -> 0.516875 | F76: 1 | G76: 1
A77: 74 | B77: =[0]!Kopfzahl.Kopfzahl(25,B$2)/25 -> 0.56 | C77: =[0]!Kopfzahl.Kopfzahl(75,C$2)/75*(3/4)+B77/4 -> 0.51 | D77: =[0]!Kopfzahl.Kopfzahl(300,D$2)/300*(3/4)+C77/4 -> 0.5375 | E77: =[0]!Kopfzahl.Kopfzahl(1200,E$2)/1200*(3/4)+D77/4 -> 0.483125 | F77: 1 | H77: 1
A78: 75 | B78: =[0]!Kopfzahl.Kopfzahl(25,B$2)/25 -> 0.52 | C78: =[0]!Kopfzahl.Kopfzahl(75,C$2)/75*(3/4)+B78/4 -> 0.51 | D78: =[0]!Kopfzahl.Kopfzahl(300,D$2)/300*(3/4)+C78/4 -> 0.49 | E78: =[0]!Kopfzahl.Kopfzahl(1200,E$2)/1200*(3/4)+D78/4 -> 0.4925 | F78: 1 | H78: 1
A79: 76 | B79: =[0]!Kopfzahl.Kopfzahl(25,B$2)/25 -> 0.36 | C79: =[0]!Kopfzahl.Kopfzahl(75,C$2)/75*(3/4)+B79/4 -> 0.38 | D79: =[0]!Kopfzahl.Kopfzahl(300,D$2)/300*(3/4)+C79/4 -> 0.455 | E79: =[0]!Kopfzahl.Kopfzahl(1200,E$2)/1200*(3/4)+D79/4 -> 0.475 | F79: 1 | G79: 1 | H79: 1
A80: 77 | B80: =[0]!Kopfzahl.Kopfzahl(25,B$2)/25 -> 0.6 | C80: =[0]!Kopfzahl.Kopfzahl(75,C$2)/75*(3/4)+B80/4 -> 0.53 | D80: =[0]!Kopfzahl.Kopfzahl(300,D$2)/300*(3/4)+C80/4 -> 0.485 | E80: =[0]!Kopfzahl.Kopfzahl(1200,E$2)/1200*(3/4)+D80/4 -> 0.50625 | F80: 1 | G80: 1 | H80: 1
A81: 78 | B81: =[0]!Kopfzahl.Kopfzahl(25,B$2)/25 -> 0.6 | C81: =[0]!Kopfzahl.Kopfzahl(75,C$2)/75*(3/4)+B81/4 -> 0.55 | D81: =[0]!Kopfzahl.Kopfzahl(300,D$2)/300*(3/4)+C81/4 -> 0.49 | E81: =[0]!Kopfzahl.Kopfzahl(1200,E$2)/1200*(3/4)+D81/4 -> 0.483125 | F81: 1 | G81: 1
A82: 79 | B82: =[0]!Kopfzahl.Kopfzahl(25,B$2)/25 -> 0.56 | C82: =[0]!Kopfzahl.Kopfzahl(75,C$2)/75*(3/4)+B82/4 -> 0.51 | D82: =[0]!Kopfzahl.Kopfzahl(300,D$2)/300*(3/4)+C82/4 -> 0.52 | E82: =[0]!Kopfzahl.Kopfzahl(1200,E$2)/1200*(3/4)+D82/4 -> 0.501875 | F82: 1 | H82: 1
A83: 80 | B83: =[0]!Kopfzahl.Kopfzahl(25,B$2)/25 -> 0.44 | C83: =[0]!Kopfzahl.Kopfzahl(75,C$2)/75*(3/4)+B83/4 -> 0.53 | D83: =[0]!Kopfzahl.Kopfzahl(300,D$2)/300*(3/4)+C83/4 -> 0.5025 | E83: =[0]!Kopfzahl.Kopfzahl(1200,E$2)/1200*(3/4)+D83/4 -> 0.516875 | F83: 1 | G83: 1
A84: 81 | B84: =[0]!Kopfzahl.Kopfzahl(25,B$2)/25 -> 0.6 | C84: =[0]!Kopfzahl.Kopfzahl(75,C$2)/75*(3/4)+B84/4 -> 0.42 | D84: =[0]!Kopfzahl.Kopfzahl(300,D$2)/300*(3/4)+C84/4 -> 0.525 | E84: =[0]!Kopfzahl.Kopfzahl(1200,E$2)/1200*(3/4)+D84/4 -> 0.509375 | F84: 1 | G84: 1 | H84: 1
A85: 82 | B85: =[0]!Kopfzahl.Kopfzahl(25,B$2)/25 -> 0.48 | C85: =[0]!Kopfzahl.Kopfzahl(75,C$2)/75*(3/4)+B85/4 -> 0.48 | D85: =[0]!Kopfzahl.Kopfzahl(300,D$2)/300*(3/4)+C85/4 -> 0.4875 | E85: =[0]!Kopfzahl.Kopfzahl(1200,E$2)/1200*(3/4)+D85/4 -> 0.5025 | G85: 1 | H85: 1
A86: 83 | B86: =[0]!Kopfzahl.Kopfzahl(25,B$2)/25 -> 0.56 | C86: =[0]!Kopfzahl.Kopfzahl(75,C$2)/75*(3/4)+B86/4 -> 0.55 | D86: =[0]!Kopfzahl.Kopfzahl(300,D$2)/300*(3/4)+C86/4 -> 0.4875 | E86: =[0]!Kopfzahl.Kopfzahl(1200,E$2)/1200*(3/4)+D86/4 -> 0.510625 | F86: 1 | G86: 1 | H86: 1
A87: 84 | B87: =[0]!Kopfzahl.Kopfzahl(25,B$2)/25 -> 0.4 | C87: =[0]!Kopfzahl.Kopfzahl(75,C$2)/75*(3/4)+B87/4 -> 0.41 | D87: =[0]!Kopfzahl.Kopfzahl(300,D$2)/300*(3/4)+C87/4 -> 0.47 | E87: =[0]!Kopfzahl.Kopfzahl(1200,E$2)/1200*(3/4)+D87/4 -> 0.476875 | F87: 1 | G87: 1 | H87: 1
A88: 85 | B88: =[0]!Kopfzahl.Kopfzahl(25,B$2)/25 -> 0.36 | C88: =[0]!Kopfzahl.Kopfzahl(75,C$2)/75*(3/4)+B88/4 -> 0.49 | D88: =[0]!Kopfzahl.Kopfzahl(300,D$2)/300*(3/4)+C88/4 -> 0.4875 | E88: =[0]!Kopfzahl.Kopfzahl(1200,E$2)/1200*(3/4)+D88/4 -> 0.508125 | F88: 1 | H88: 1
A89: 86 | B89: =[0]!Kopfzahl.Kopfzahl(25,B$2)/25 -> 0.52 | C89: =[0]!Kopfzahl.Kopfzahl(75,C$2)/75*(3/4)+B89/4 -> 0.45 | D89: =[0]!Kopfzahl.Kopfzahl(300,D$2)/300*(3/4)+C89/4 -> 0.51 | E89: =[0]!Kopfzahl.Kopfzahl(1200,E$2)/1200*(3/4)+D89/4 -> 0.491875 | G89: 1 | H89: 1
A90: 87 | B90: =[0]!Kopfzahl.Kopfzahl(25,B$2)/25 -> 0.4 | C90: =[0]!Kopfzahl.Kopfzahl(75,C$2)/75*(3/4)+B90/4 -> 0.55 | D90: =[0]!Kopfzahl.Kopfzahl(300,D$2)/300*(3/4)+C90/4 -> 0.4775 | E90: =[0]!Kopfzahl.Kopfzahl(1200,E$2)/1200*(3/4)+D90/4 -> 0.49875 | F90: 1 | G90: 1 | H90: 1
A91: 88 | B91: =[0]!Kopfzahl.Kopfzahl(25,B$2)/25 -> 0.56 | C91: =[0]!Kopfzahl.Kopfzahl(75,C$2)/75*(3/4)+B91/4 -> 0.51 | D91: =[0]!Kopfzahl.Kopfzahl(300,D$2)/300*(3/4)+C91/4 -> 0.4975 | E91: =[0]!Kopfzahl.Kopfzahl(1200,E$2)/1200*(3/4)+D91/4 -> 0.50375 | F91: 1 | G91: 1
A92: 89 | B92: =[0]!Kopfzahl.Kopfzahl(25,B$2)/25 -> 0.44 | C92: =[0]!Kopfzahl.Kopfzahl(75,C$2)/75*(3/4)+B92/4 -> 0.49 | D92: =[0]!Kopfzahl.Kopfzahl(300,D$2)/300*(3/4)+C92/4 -> 0.48 | E92: =[0]!Kopfzahl.Kopfzahl(1200,E$2)/1200*(3/4)+D92/4 -> 0.5125 | F92: 1 | H92: 1
A93: 90 | B93: =[0]!Kopfzahl.Kopfzahl(25,B$2)/25 -> 0.44 | C93: =[0]!Kopfzahl.Kopfzahl(75,C$2)/75*(3/4)+B93/4 -> 0.43 | D93: =[0]!Kopfzahl.Kopfzahl(300,D$2)/300*(3/4)+C93/4 -> 0.5125 | E93: =[0]!Kopfzahl.Kopfzahl(1200,E$2)/1200*(3/4)+D93/4 -> 0.481875 | G93: 1
A94: 91 | B94: =[0]!Kopfzahl.Kopfzahl(25,B$2)/25 -> 0.48 | C94: =[0]!Kopfzahl.Kopfzahl(75,C$2)/75*(3/4)+B94/4 -> 0.49 | D94: =[0]!Kopfzahl.Kopfzahl(300,D$2)/300*(3/4)+C94/4 -> 0.465 | E94: =[0]!Kopfzahl.Kopfzahl(1200,E$2)/1200*(3/4)+D94/4 -> 0.5075 | F94: 1 | H94: 1
A95: 92 | B95: =[0]!Kopfzahl.Kopfzahl(25,B$2)/25 -> 0.6 | C95: =[0]!Kopfzahl.Kopfzahl(75,C$2)/75*(3/4)+B95/4 -> 0.53 | D95: =[0]!Kopfzahl.Kopfzahl(300,D$2)/300*(3/4)+C95/4 -> 0.5125 | E95: =[0]!Kopfzahl.Kopfzahl(1200,E$2)/1200*(3/4)+D95/4 -> 0.513125 | F95: 1 | G95: 1
A96: 93 | B96: =[0]!Kopfzahl.Kopfzahl(25,B$2)/25 -> 0.4 | C96: =[0]!Kopfzahl.Kopfzahl(75,C$2)/75*(3/4)+B96/4 -> 0.47 | D96: =[0]!Kopfzahl.Kopfzahl(300,D$2)/300*(3/4)+C96/4 -> 0.4825 | E96: =[0]!Kopfzahl.Kopfzahl(1200,E$2)/1200*(3/4)+D96/4 -> 0.51625 | F96: 1 | G96: 1 | H96: 1
A97: 94 | B97: =[0]!Kopfzahl.Kopfzahl(25,B$2)/25 -> 0.44 | C97: =[0]!Kopfzahl.Kopfzahl(75,C$2)/75*(3/4)+B97/4 -> 0.5 | D97: =[0]!Kopfzahl.Kopfzahl(300,D$2)/300*(3/4)+C97/4 -> 0.46 | E97: =[0]!Kopfzahl.Kopfzahl(1200,E$2)/1200*(3/4)+D97/4 -> 0.498125 | F97: 1 | H97: 1
A98: 95 | B98: =[0]!Kopfzahl.Kopfzahl(25,B$2)/25 -> 0.6 | C98: =[0]!Kopfzahl.Kopfzahl(75,C$2)/75*(3/4)+B98/4 -> 0.66 | D98: =[0]!Kopfzahl.Kopfzahl(300,D$2)/300*(3/4)+C98/4 -> 0.5675 | E98: =[0]!Kopfzahl.Kopfzahl(1200,E$2)/1200*(3/4)+D98/4 -> 0.505 | G98: 1 | H98: 1
A99: 96 | B99: =[0]!Kopfzahl.Kopfzahl(25,B$2)/25 -> 0.44 | C99: =[0]!Kopfzahl.Kopfzahl(75,C$2)/75*(3/4)+B99/4 -> 0.52 | D99: =[0]!Kopfzahl.Kopfzahl(300,D$2)/300*(3/4)+C99/4 -> 0.505 | E99: =[0]!Kopfzahl.Kopfzahl(1200,E$2)/1200*(3/4)+D99/4 -> 0.509375 | F99: 1 | G99: 1
A100: 97 | B100: =[0]!Kopfzahl.Kopfzahl(25,B$2)/25 -> 0.4 | C100: =[0]!Kopfzahl.Kopfzahl(75,C$2)/75*(3/4)+B100/4 -> 0.45 | D100: =[0]!Kopfzahl.Kopfzahl(300,D$2)/300*(3/4)+C100/4 -> 0.46 | E100: =[0]!Kopfzahl.Kopfzahl(1200,E$2)/1200*(3/4)+D100/4 -> 0.474375 | F100: 1 | G100: 1 | H100: 1
A101: 98 | B101: =[0]!Kopfzahl.Kopfzahl(25,B$2)/25 -> 0.4 | C101: =[0]!Kopfzahl.Kopfzahl(75,C$2)/75*(3/4)+B101/4 -> 0.47 | D101: =[0]!Kopfzahl.Kopfzahl(300,D$2)/300*(3/4)+C101/4 -> 0.5125 | E101: =[0]!Kopfzahl.Kopfzahl(1200,E$2)/1200*(3/4)+D101/4 -> 0.506875 | F101: 1 | G101: 1 | H101: 1
A102: 99 | B102: =[0]!Kopfzahl.Kopfzahl(25,B$2)/25 -> 0.6 | C102: =[0]!Kopfzahl.Kopfzahl(75,C$2)/75*(3/4)+B102/4 -> 0.53 | D102: =[0]!Kopfzahl.Kopfzahl(300,D$2)/300*(3/4)+C102/4 -> 0.54 | E102: =[0]!Kopfzahl.Kopfzahl(1200,E$2)/1200*(3/4)+D102/4 -> 0.523125 | F102: 1 | H102: 1
A103: 100 | B103: =[0]!Kopfzahl.Kopfzahl(25,B$2)/25 -> 0.48 | C103: =[0]!Kopfzahl.Kopfzahl(75,C$2)/75*(3/4)+B103/4 -> 0.47 | D103: =[0]!Kopfzahl.Kopfzahl(300,D$2)/300*(3/4)+C103/4 -> 0.4875 | E103: =[0]!Kopfzahl.Kopfzahl(1200,E$2)/1200*(3/4)+D103/4 -> 0.495625 | G103: 1 | H103: 1
F104: =SUM(F4:F103) -> 74 | G104: =SUM(G4:G103) -> 67 | H104: =SUM(H4:H103) -> 73
B105: 25er | C105: 100er | D105: 400er | E105: 1600er
A106: q1 | B106: =PERCENTILE(B$4:B$103,0.25) -> 0.44 | C106: =PERCENTILE(C$4:C$103,0.25) -> 0.48 | D106: =PERCENTILE(D$4:D$103,0.25) -> 0.4825 | E106: =PERCENTILE(E$4:E$103,0.25) -> 0.49234375
A107: min | B107: =MIN(B$4:B$103) -> 0.32 | C107: =MIN(C$4:C$103) -> 0.38 | D107: =MIN(D$4:D$103) -> 0.4475 | E107: =MIN(E$4:E$103) -> 0.4625
A108: Mittelwert | B108: =MEDIAN(B$4:B$103) -> 0.48 | C108: =MEDIAN(C$4:C$103) -> 0.5 | D108: =MEDIAN(D$4:D$103) -> 0.4975 | E108: =MEDIAN(E$4:E$103) -> 0.501875
A109: Median | B109: =AVERAGE(B$4:B$103) -> 0.496 | C109: =AVERAGE(C$4:C$103) -> 0.5006 | D109: =AVERAGE(D$4:D$103) -> 0.4981 | E109: =AVERAGE(E$4:E$103) -> 0.50024375
A110: max | B110: =MAX(B$4:B$103) -> 0.72 | C110: =MAX(C$4:C$103) -> 0.66 | D110: =MAX(D$4:D$103) -> 0.5725 | E110: =MAX(E$4:E$103) -> 0.523125
A111: q3 | B111: =PERCENTILE(B$4:B$103,0.75) -> 0.56 | C111: =PERCENTILE(C$4:C$103,0.75) -> 0.53 | D111: =PERCENTILE(D$4:D$103,0.75) -> 0.5125 | E111: =PERCENTILE(E$4:E$103,0.75) -> 0.50890625
B112: =B111-B106 -> 0.12 | C112: =C111-C106 -> 0.05 | D112: =D111-D106 -> 0.03 | E112: =E111-E106 -> 0.0165625
A114: Im Intervall [0,5-1/SQRT(n);0,5+1/SQRT(n)] liegen ca. 96% aller relativer Häufigkeiten
A116: 0.3 | B116: =FREQUENCY(B$4:B$103,$A116:$A125) -> 0 | C116: =FREQUENCY(C$4:C$103,$A116:$A125) -> 0 | D116: =FREQUENCY(D$4:D$103,$A116:$A125) -> 0
A117: 0.4 | B117: 21 | C117: 2 | D117: 0
A118: 0.45 | B118: 19 | C118: 15 | D118: 1
A119: 0.475 | B119: 0 | C119: 6 | D119: 15
A120: 0.5 | B120: 12 | C120: 30 | D120: 42
A121: 0.525 | B121: 16 | C121: 20 | D121: 33
A122: 0.55 | B122: 0 | C122: 19 | D122: 7
A123: 0.6 | B123: 27 | C123: 5 | D123: 2
A124: 0.7 | B124: 4 | C124: 3 | D124: 0
A125: 1 | B125: 1 | C125: 0 | D125: 0
B127: =SUM(B117:B124) -> 99 | C127: =SUM(C118:C123) -> 95 | D127: =SUM(D119:D122) -> 97
